fUSD/lending_fUSD_20260605
["ID","MTS","AMOUNT","RATE_DAILY","PERIOD"]
[424166628,1780623073000,-297.69,0.0002343,2]
[424166622,1780623073000,-151.0,0.00023403,2]
[424166681,1780623074000,-1197.057938,0.00024,2]
[424166683,1780623074000,-734.0,0.00024,2]
[424166685,1780623074000,-1039.78596541,0.00024,2]
[424166684,1780623074000,-1083.0,0.00024,2]
[424166682,1780623074000,-500.0,0.00024,2]
[424166686,1780623074000,-486.0,0.00024,2]
[424166687,1780623074000,-2011.0,0.00024,2]
[424166688,1780623074000,-2472.0,0.00024,2]
[424166689,1780623074000,-3600.0,0.00024,2]
[424166678,1780623074000,-10176.97688076,0.000239,2]
[424166691,1780623074000,-1257.27614746,0.00024,2]
[424166693,1780623074000,-3202.0,0.00024,2]
[424166692,1780623074000,-226.0,0.00024,2]
[424166694,1780623074000,-446.0,0.00024,2]
[424166695,1780623074000,-678.0,0.00024,2]
[424166700,1780623074000,-215.73365239,0.00024,7]
[424166698,1780623074000,-1763.0,0.00024,2]
[424166702,1780623074000,-152.0,0.00024207,2]
[424166690,1780623074000,-905.0,0.00024,2]
[424166676,1780623074000,-7160.72237861,0.000239,2]
[424166666,1780623074000,-997.16350561,0.00023678,2]
[424166674,1780623074000,-700.0,0.00023809,2]
[424166697,1780623074000,-994.0,0.00024,2]
[424166658,1780623074000,-1481.2378076,0.00023676,2]
[424166667,1780623074000,-7160.72237861,0.000237,2]
[424166663,1780623074000,-217.15233878,0.00023676,2]
[424166661,1780623074000,-500.0,0.00023676,2]
[424166659,1780623074000,-217.15233878,0.00023676,2]
[424166665,1780623074000,-997.16350561,0.00023678,2]
[424166664,1780623074000,-151.0,0.00023678,2]
[424166660,1780623074000,-719.04747942,0.00023676,2]
[424166662,1780623074000,-217.15233878,0.00023676,2]
[424166679,1780623074000,-3169.04614476,0.000239,2]
[424166669,1780623074000,-10176.97688076,0.000237,2]
[424166680,1780623074000,-3441.0,0.00023989,5]
[424166668,1780623074000,-2112.48062307,0.000237,2]
[424166671,1780623074000,-2884.75459676,0.0002377,2]
[424166670,1780623074000,-200.0,0.0002377,2]
[424166675,1780623074000,-200.0,0.00023885,2]
[424166677,1780623074000,-2112.48062307,0.000239,2]
[424166673,1780623074000,-500.0,0.00023786,2]
[424166672,1780623074000,-350.0,0.0002378,2]
[424166699,1780623074000,-526.0,0.00024,2]
[424166704,1780623074000,-3762.82462446,0.0002421,2]
[424166701,1780623074000,-10176.97688076,0.000242,2]
[424166726,1780623074000,-3344.0,0.00024545,5]
[424166728,1780623074000,-172.18528025,0.0002465,2]
[424166733,1780623074000,-151.0,0.00024658,2]
[424166729,1780623074000,-151.0,0.00024658,2]
[424166730,1780623074000,-151.0,0.00024658,2]
[424166734,1780623074000,-278.369135,0.00024658,2]
[424166731,1780623074000,-151.0,0.00024658,2]
[424166735,1780623074000,-1000.0,0.00024658,2]
[424166727,1780623074000,-150.77874354,0.00024607,2]
[424166736,1780623074000,-151.0,0.00024658,2]
[424166740,1780623074000,-151.0,0.00024658,2]
[424166741,1780623074000,-151.0,0.00024658,2]
[424166738,1780623074000,-151.0,0.00024658,2]
[424166742,1780623074000,-151.0,0.00024658,2]
[424166739,1780623074000,-151.0,0.00024658,2]
[424166743,1780623074000,-151.0,0.00024658,2]
[424166744,1780623074000,-151.0,0.00024658,2]
[424166696,1780623074000,-3515.0,0.00024,2]
[424166737,1780623074000,-151.0,0.00024658,2]
[424166725,1780623074000,-3348.0,0.00024545,5]
[424166732,1780623074000,-151.0,0.00024658,2]
[424166722,1780623074000,-350.0,0.00024467,2]
[424166723,1780623074000,-156.587,0.00024497,2]
[424166709,1780623074000,-200.0,0.00024224,2]
[424166705,1780623074000,-301.0006985,0.00024224,2]
[424166706,1780623074000,-187.78006524,0.00024224,2]
[424166710,1780623074000,-1536.04360648,0.00024224,2]
[424166707,1780623074000,-799.54513344,0.00024224,2]
[424166703,1780623074000,-295.74121978,0.00024207,2]
[424166711,1780623074000,-225.18697532,0.00024224,2]
[424166713,1780623074000,-500.0,0.00024224,2]
[424166712,1780623074000,-745.65223615,0.00024224,2]
[424166708,1780623074000,-200.0,0.00024224,2]
[424166724,1780623074000,-500.0,0.000245,2]
[424166718,1780623074000,-2991.49051684,0.00024318,2]
[424166716,1780623074000,-350.0,0.00024236,2]
[424166715,1780623074000,-225.18697532,0.00024224,2]
[424166714,1780623074000,-225.18697532,0.00024224,2]
[424166717,1780623074000,-200.0,0.00024318,2]
[424166721,1780623074000,-614.83612588,0.00024426,2]
[424166720,1780623074000,-10176.97688076,0.000244,2]
[424166719,1780623074000,-4072.3,0.00024324,2]
[424166771,1780623075000,-151.0,0.00024958,2]
[424166773,1780623075000,-153.36591786,0.00024958,2]
[424166774,1780623075000,-150.0,0.00025,2]
[424166768,1780623075000,-299.50806145,0.0002492,10]
[424166770,1780623075000,-2000.0,0.0002495,2]
[424166769,1780623075000,-1262.79580771,0.0002492,10]
[424166772,1780623075000,-151.0,0.00024958,2]
[424166767,1780623075000,-200.0,0.00024866,2]
[424166775,1780623075000,-323.0,0.00025,2]
[424166790,1780623075000,-1000.0,0.00025,2]
[424166777,1780623075000,-1000.0,0.00025,2]
[424166778,1780623075000,-1000.0,0.00025,2]
[424166780,1780623075000,-1000.0,0.00025,2]
[424166779,1780623075000,-1000.0,0.00025,2]
[424166781,1780623075000,-1000.0,0.00025,2]
[424166782,1780623075000,-1000.0,0.00025,2]
[424166783,1780623075000,-1000.0,0.00025,2]
[424166786,1780623075000,-1000.0,0.00025,2]
[424166776,1780623075000,-1000.0,0.00025,2]
[424166766,1780623075000,-350.0,0.00024864,2]
[424166784,1780623075000,-1000.0,0.00025,2]
[424166763,1780623075000,-2087.47,0.00024788,7]
[424166746,1780623075000,-539.29,0.00024658,2]
[424166748,1780623075000,-200.0,0.0002466,2]
[424166750,1780623075000,-10176.97688076,0.000247,2]
[424166747,1780623075000,-150.0,0.00024658,2]
[424166745,1780623075000,-151.0,0.00024658,2]
[424166749,1780623075000,-350.0,0.00024661,2]
[424166751,1780623075000,-2000.0,0.0002475,2]
[424166757,1780623075000,-1592.87721992,0.00024772,2]
[424166756,1780623075000,-200.0,0.00024772,2]
[424166752,1780623075000,-312.13772435,0.00024772,2]
[424166758,1780623075000,-233.5188934,0.00024772,2]
[424166759,1780623075000,-773.24136889,0.00024772,2]
[424166753,1780623075000,-194.72792766,0.00024772,2]
[424166754,1780623075000,-829.12830338,0.00024772,2]
[424166755,1780623075000,-200.0,0.00024772,2]
[424166760,1780623075000,-233.5188934,0.00024772,2]
[424166762,1780623075000,-233.5188934,0.00024772,2]
[424166761,1780623075000,-500.0,0.00024772,2]
[424166765,1780623075000,-2000.0,0.0002485,2]
[424166764,1780623075000,-2000.0,0.000248,2]
[424166785,1780623075000,-1000.0,0.00025,2]
[424166809,1780623075000,-1813.61404091,0.00025,2]
[424166787,1780623075000,-1000.0,0.00025,2]
[424166810,1780623075000,-2473.95086653,0.00025,2]
[424166814,1780623075000,-620.59546495,0.00025,2]
[424166813,1780623075000,-919.9717729,0.00025,2]
[424166815,1780623075000,-3092.24521926,0.00025,2]
[424166818,1780623075000,-170.0099826,0.00025,2]
[424166816,1780623075000,-7243.68629212,0.00025,2]
[424166817,1780623075000,-2235.82725069,0.00025,2]
[424166819,1780623075000,-628.36340733,0.00025,5]
[424166812,1780623075000,-540.0,0.00025,2]
[424166821,1780623075000,-3208.0,0.00025,2]
[424166824,1780623075000,-3534.21968046,0.00025,2]
[424166822,1780623075000,-460.49528579,0.00025,2]
[424166825,1780623075000,-999.21642591,0.00025,2]
[424166823,1780623075000,-684.27581179,0.00025,2]
[424166826,1780623075000,-1767.80008228,0.00025,2]
[424166827,1780623075000,-526.81620801,0.00025,2]
[424166830,1780623075000,-151.0,0.00025052,2]
[424166831,1780623075000,-49596.60419201,0.000251,2]
[424166820,1780623075000,-237.9275313,0.00025,2]
[424166805,1780623075000,-495.89486022,0.00025,2]
[424166829,1780623075000,-151.0,0.00025052,2]
[424166811,1780623075000,-2000.0,0.00025,2]
[424166808,1780623075000,-2027.0,0.00025,2]
[424166788,1780623075000,-1000.0,0.00025,2]
[424166791,1780623075000,-1000.0,0.00025,2]
[424166794,1780623075000,-1000.0,0.00025,2]
[424166795,1780623075000,-1000.0,0.00025,2]
[424166797,1780623075000,-1000.0,0.00025,2]
[424166800,1780623075000,-186.75342562,0.00025,2]
[424166798,1780623075000,-1000.0,0.00025,2]
[424166792,1780623075000,-1000.0,0.00025,2]
[424166789,1780623075000,-1000.0,0.00025,2]
[424166799,1780623075000,-1000.0,0.00025,2]
[424166793,1780623075000,-1000.0,0.00025,2]
[424166796,1780623075000,-1000.0,0.00025,2]
[424166801,1780623075000,-742.11225223,0.00025,2]
[424166804,1780623075000,-151.0,0.00025,2]
[424166803,1780623075000,-151.0,0.00025,2]
[424166802,1780623075000,-1085.89868791,0.00025,2]
[424166807,1780623075000,-210.82881074,0.00025,2]
[424166806,1780623075000,-1131.84142249,0.00025,2]
[424166828,1780623075000,-2000.0,0.0002505,2]
[424166832,1780623076000,152.0,0.00014,7]
[424166834,1780623076000,152.0,0.00030023,120]
[424166833,1780623076000,152.0,0.00014,7]
[424166835,1780623078000,-2068.42875422,0.00013859,2]
[424166837,1780623080000,-1870.52030975,0.00012678,2]
[424166836,1780623080000,-557.92626403,9.814e-05,2]
[424166841,1780623083000,-500.0,9.814e-05,2]
[424166839,1780623083000,-262.10409115,9.814e-05,2]
[424166840,1780623083000,-500.0,9.814e-05,2]
[424166846,1780623083000,-319.89729747,0.00014592,2]
[424166844,1780623083000,-502.31483673,0.00013698,2]
[424166845,1780623083000,-1065.02982956,0.00013859,2]
[424166838,1780623083000,-500.0,9.814e-05,2]
[424166843,1780623083000,-2129.47969025,0.00012678,2]
[424166842,1780623083000,-500.0,9.814e-05,2]
[424166847,1780623087000,617.50593098,0.0003013,120]
[424166848,1780623090000,2000.0,0.00028108,120]
[424166849,1780623108000,-400.0,9.814e-05,2]
[424166851,1780623125000,-100.0,9.814e-05,2]
[424166852,1780623175000,-447.0,0.00010698,2]
[424166854,1780623194000,-135.0274278,0.00010698,2]
[424166855,1780623199000,283.44965672,0.000301,120]
[424166856,1780623242000,-219.7374904,0.00010698,2]
[424166857,1780623264000,500.0,0.000125,4]
[424166858,1780623266000,1100.0,0.000126,4]
[424166859,1780623268000,1700.0,0.000127,4]
[424166860,1780623270000,2300.0,0.000128,4]
[424166861,1780623273000,2900.0,0.000129,4]
[424166862,1780623296000,-440.33624884,0.00010696,2]
[424166863,1780623303000,209.0,0.00025442,120]
[424166866,1780623544000,400.0,0.000125,4]
[424166867,1780623546000,900.0,0.000126,4]
[424166868,1780623548000,1400.0,0.000127,4]
[424166870,1780623551000,1180.88374475,0.000128,4]
[424166869,1780623551000,719.11625525,0.000128,4]
[424166871,1780623553000,2400.0,0.000129,4]
[424166872,1780623641000,152.0,0.00014036,7]
[424166874,1780623642000,152.0,0.00014036,7]
[424166873,1780623642000,152.0,0.00014036,7]
[424166875,1780623644000,152.0,0.00029998,120]
[424166876,1780623654000,-150.42978211,9.894e-05,2]
[424166877,1780623654000,-849.57021789,0.00010657,2]
[424166878,1780623657000,-413.78702065,0.00010657,2]
[424166879,1780623657000,-586.21297935,0.00010657,2]
[424166881,1780623658000,-322.85574081,0.00010657,2]
[424166880,1780623658000,-677.14425919,0.00010657,2]
[424166882,1780623660000,-940.50149773,0.00010657,2]
[424166883,1780623660000,-59.49850227,0.00010657,2]
[424166884,1780623661000,-1000.0,0.00010657,2]
[424166885,1780623663000,-203.85873627,0.00010657,2]
[424166886,1780623663000,-796.14126373,0.00010657,2]
[424166887,1780623671000,-400.0,0.00010657,2]
[424166888,1780623688000,-67.21597481,0.00010657,2]
[424166889,1780623689000,179.48094,0.00030137,120]
[424166890,1780623741000,-150.0,0.00010656,2]
[424166891,1780623794000,-195.52,0.00010656,2]
[424166892,1780623797000,1425.19,0.00030082,120]
[424166893,1780623812000,-195.52,0.00010656,2]
[424166894,1780623830000,-108.96,0.00010656,2]
[424166895,1780623835000,300.0,0.000125,4]
[424166896,1780623837000,700.0,0.000126,4]
[424166897,1780623839000,1100.0,0.000127,4]
[424166898,1780623841000,1500.0,0.000128,4]
[424166899,1780623843000,1900.0,0.000129,4]
[424166900,1780623879000,-150.0,0.00010336,2]
[424166901,1780623933000,-805.98345196,0.00010654,2]
[424166902,1780623938000,1832.5,0.00030136,120]
[424166903,1780623953000,-394.01654804,0.00010654,2]
[424166905,1780624001000,-150.0,0.00010654,2]
[424166906,1780624024000,400.0,0.000125,4]
[424166907,1780624026000,900.0,0.000126,4]
[424166908,1780624029000,1400.0,0.000127,4]
[424166909,1780624031000,1900.0,0.000128,4]
[424166910,1780624033000,2300.0,0.000129,4]
[424166911,1780624054000,-250.0,0.00010657,2]
[424166912,1780624141000,2000.0,0.00030136,120]
[424166913,1780624150000,-225.45784504,0.00010656,2]
[424166914,1780624150000,-36.12504359,0.00010656,2]
[424166936,1780624232000,-1000.0,0.00011,2]
[424166938,1780624232000,-1000.0,0.00011,2]
[424166939,1780624232000,-1000.0,0.00011,2]
[424166940,1780624232000,-1000.0,0.00011,2]
[424166942,1780624232000,-1000.0,0.00011,2]
[424166943,1780624232000,-235.97962893,0.0001148,2]
[424166946,1780624232000,-2000.0,0.00011638,2]
[424166935,1780624232000,-218.0,0.0001087,2]
[424166955,1780624232000,-200.0,0.00012316,2]
[424166957,1780624232000,-9767.7921,0.00012764,2]
[424166949,1780624232000,-490.4081244,0.00011721,2]
[424166959,1780624232000,-999.1378189,0.00012892,2]
[424166950,1780624232000,-250.0,0.00011721,2]
[424166947,1780624232000,-1680.0,0.0001172,2]
[424166956,1780624232000,-1425.19,0.00012329,2]
[424166951,1780624232000,-503.22480917,0.00011722,2]
[424166944,1780624232000,-764.02037107,0.0001148,2]
[424166945,1780624232000,-167.18,0.00011597,2]
[424166934,1780624232000,-160.0,0.00010861,2]
[424166932,1780624232000,-39.84069905,0.00010738,2]
[424166918,1780624232000,-157.82049153,0.00010655,2]
[424166917,1780624232000,-500.0,0.00010655,2]
[424166920,1780624232000,-557.92626403,0.00010655,2]
[424166921,1780624232000,-500.0,0.00010655,2]
[424166919,1780624232000,-500.0,0.00010655,2]
[424166922,1780624232000,-500.0,0.00010655,2]
[424166923,1780624232000,-500.0,0.00010655,2]
[424166937,1780624232000,-1000.0,0.00011,2]
[424166925,1780624232000,-256.03970166,0.00010655,2]
[424166926,1780624232000,-500.0,0.00010656,2]
[424166927,1780624232000,-3001.45010517,0.00010658,2]
[424166930,1780624232000,-3735.21127046,0.00010697,2]
[424166931,1780624232000,-175.89295334,0.00010738,2]
[424166924,1780624232000,-1200.0,0.00010655,2]
[424166929,1780624232000,-2624.4870622,0.00010697,2]
[424166933,1780624232000,-150.0,0.00010763,2]
[424166928,1780624232000,-3267.16419483,0.00010658,2]
[424166953,1780624232000,-641.97,0.00011967,2]
[424166960,1780624232000,-423.4821003,0.00010655,2]
[424166954,1780624232000,-150.0,0.00012127,2]
[424166980,1780624232000,-434.78344296,0.00012934,2]
[424166979,1780624232000,-186.9324603,0.00012934,2]
[424166981,1780624232000,-329.77292737,0.00012934,2]
[424166983,1780624232000,-1898.12028,0.00012937,2]
[424166985,1780624232000,-513.39594973,0.00010655,2]
[424166987,1780624232000,-167.91334289,0.00012963,2]
[424166984,1780624232000,-1991.4070198,0.00012937,2]
[424166982,1780624232000,-4771.82090098,0.00012937,2]
[424166986,1780624232000,-1338.65179922,0.00012937,2]
[424166990,1780624232000,-151.0,0.00013025,2]
[424166992,1780624232000,-156.5905098,0.00013027,2]
[424166989,1780624232000,-151.0,0.00013025,2]
[424166994,1780624232000,-151.0,0.00013034,2]
[424166993,1780624232000,-151.0,0.00013034,2]
[424166995,1780624232000,-3792.84660651,0.00013037,2]
[424166952,1780624232000,-150.0,0.00011966,2]
[424166988,1780624232000,-151.0,0.00013025,2]
[424166977,1780624232000,-4.65203737,0.00010655,2]
[424166991,1780624232000,-201.52549826,0.00013027,2]
[424166976,1780624232000,-500.0,0.00010655,2]
[424166978,1780624232000,-417.98331336,0.00010655,2]
[424166996,1780624232000,-8305.03292244,0.00013037,2]
[424166962,1780624232000,-1351.8621811,0.00012892,2]
[424166963,1780624232000,-1480.73673426,0.00012928,2]
[424166964,1780624232000,-1019.26326574,0.00012928,2]
[424166969,1780624232000,-1663.34254865,0.00012928,2]
[424166970,1780624232000,-167.53745775,0.00012934,2]
[424166967,1780624232000,-497.36274381,0.00010655,2]
[424166961,1780624232000,-76.5178997,0.00010655,2]
[424166965,1780624232000,-836.12920842,0.00012928,2]
[424166975,1780624232000,-1125.04789729,0.00012934,2]
[424166966,1780624232000,-1500.52824293,0.00012928,2]
[424166972,1780624232000,-171.86900025,0.00012934,2]
[424166971,1780624232000,-76.77924676,0.00012934,2]
[424166973,1780624232000,-205.38122824,0.00012934,2]
[424166974,1780624232000,-749.6440699,0.00012934,2]
[424166968,1780624232000,-2.63725619,0.00010655,2]
[424166997,1780624233000,-98404.23804915,0.00013037,2]
[424166998,1780624233000,-21208.18543126,0.00013037,2]
[424166999,1780624233000,-28572.73468324,0.00013037,2]
[424167000,1780624233000,-13487.93888821,0.00013037,2]
[424167035,1780624238000,-1075.59981776,0.00010655,2]
[424167034,1780624238000,-1075.59981776,0.00010655,2]
[424167028,1780624238000,-1075.59981776,0.00010655,2]
[424167029,1780624238000,-1075.59981776,0.00010655,2]
[424167030,1780624238000,-1075.59981776,0.00010655,2]
[424167032,1780624238000,-1075.59981776,0.00010655,2]
[424167027,1780624238000,-1075.59981776,0.00010655,2]
[424167033,1780624238000,-1075.59981776,0.00010655,2]
[424167037,1780624238000,-1075.59981776,0.00010655,2]
[424167018,1780624238000,-531.85455669,0.00010655,2]
[424167025,1780624238000,-424.29849237,0.00010655,2]
[424167026,1780624238000,-32.52183355,0.00010655,2]
[424167024,1780624238000,-618.77949184,0.00010655,2]
[424167023,1780624238000,-1075.59981776,0.00010655,2]
[424167022,1780624238000,-896.5949176,0.00010655,2]
[424167020,1780624238000,-1075.59981776,0.00010655,2]
[424167021,1780624238000,-179.00490016,0.00010655,2]
[424167019,1780624238000,-178.11667731,0.00010655,2]
[424167017,1780624238000,-365.62858376,0.00010655,2]
[424167031,1780624238000,-1075.59981776,0.00010655,2]
[424167038,1780624238000,-568.30059404,0.00010655,2]
[424167039,1780624238000,-507.29922372,0.00010655,2]
[424167036,1780624238000,-1075.59981776,0.00010655,2]
[424167049,1780624238000,-1075.59981776,0.00010655,2]
[424167048,1780624238000,-1075.59981776,0.00010655,2]
[424167058,1780624238000,-1075.59981776,0.00010655,2]
[424167061,1780624238000,-1075.59981776,0.00010655,2]
[424167060,1780624238000,-1075.59981776,0.00010655,2]
[424167059,1780624238000,-1075.59981776,0.00010655,2]
[424167062,1780624238000,-1075.59981776,0.00010655,2]
[424167053,1780624238000,-1075.59981776,0.00010655,2]
[424167054,1780624238000,-1075.59981776,0.00010655,2]
[424167055,1780624238000,-1075.59981776,0.00010655,2]
[424167056,1780624238000,-1075.59981776,0.00010655,2]
[424167057,1780624238000,-1075.59981776,0.00010655,2]
[424167063,1780624238000,-1075.59981776,0.00010655,2]
[424167046,1780624238000,-1075.59981776,0.00010655,2]
[424167047,1780624238000,-1075.59981776,0.00010655,2]
[424167041,1780624238000,-1075.59981776,0.00010655,2]
[424167042,1780624238000,-1075.59981776,0.00010655,2]
[424167044,1780624238000,-1075.59981776,0.00010655,2]
[424167043,1780624238000,-1075.59981776,0.00010655,2]
[424167045,1780624238000,-1075.59981776,0.00010655,2]
[424167040,1780624238000,-1075.59981776,0.00010655,2]
[424167051,1780624238000,-1075.59981776,0.00010655,2]
[424167052,1780624238000,-1075.59981776,0.00010655,2]
[424167050,1780624238000,-1075.59981776,0.00010655,2]
[424167110,1780624239000,-500.0,0.00013698,2]
[424167116,1780624239000,-500.0,0.00013698,2]
[424167106,1780624239000,-500.0,0.00013698,2]
[424167105,1780624239000,-500.0,0.00013698,2]
[424167104,1780624239000,-507.80937372,0.00013698,2]
[424167099,1780624239000,-500.0,0.00013698,2]
[424167096,1780624239000,-445.99489719,0.00013698,2]
[424167100,1780624239000,-500.0,0.00013698,2]
[424167098,1780624239000,-500.0,0.00013698,2]
[424167091,1780624239000,-500.0,0.00013698,2]
[424167114,1780624239000,-200.02042576,0.00013698,2]
[424167101,1780624239000,-500.0,0.00013698,2]
[424167115,1780624239000,-500.0,0.00013698,2]
[424167128,1780624239000,-500.0,0.00013698,2]
[424167112,1780624239000,-500.0,0.00013698,2]
[424167108,1780624239000,-360.00364986,0.00013698,2]
[424167107,1780624239000,-500.0,0.00013698,2]
[424167111,1780624239000,-500.0,0.00013698,2]
[424167109,1780624239000,-500.0,0.00013698,2]
[424167125,1780624239000,-500.0,0.00013698,2]
[424167126,1780624239000,-500.0,0.00013698,2]
[424167127,1780624239000,-500.0,0.00013698,2]
[424167117,1780624239000,-500.0,0.00013698,2]
[424167129,1780624239000,-500.0,0.00013698,2]
[424167093,1780624239000,-500.0,0.00013698,2]
[424167118,1780624239000,-500.0,0.00013698,2]
[424167121,1780624239000,-500.0,0.00013698,2]
[424167123,1780624239000,-500.0,0.00013698,2]
[424167113,1780624239000,-500.0,0.00013698,2]
[424167103,1780624239000,-500.0,0.00013698,2]
[424167080,1780624239000,-255.0,0.00013043,2]
[424167094,1780624239000,-500.0,0.00013698,2]
[424167119,1780624239000,-500.0,0.00013698,2]
[424167064,1780624239000,-1075.59981776,0.00010655,2]
[424167066,1780624239000,-1075.59981776,0.00010655,2]
[424167068,1780624239000,-1075.59981776,0.00010655,2]
[424167065,1780624239000,-1075.59981776,0.00010655,2]
[424167067,1780624239000,-1075.59981776,0.00010655,2]
[424167069,1780624239000,-1075.59981776,0.00010655,2]
[424167071,1780624239000,-1075.59981776,0.00010655,2]
[424167073,1780624239000,-1075.59981776,0.00010655,2]
[424167075,1780624239000,-1075.59981776,0.00010655,2]
[424167074,1780624239000,-1075.59981776,0.00010655,2]
[424167076,1780624239000,-1075.59981776,0.00010655,2]
[424167070,1780624239000,-1075.59981776,0.00010655,2]
[424167077,1780624239000,-1075.59981776,0.00010655,2]
[424167072,1780624239000,-1075.59981776,0.00010655,2]
[424167088,1780624239000,-500.0,0.00013698,2]
[424167089,1780624239000,-500.0,0.00013698,2]
[424167079,1780624239000,-1326229.02341919,0.00013037,2]
[424167078,1780624239000,-1075.59981776,0.00010655,2]
[424167090,1780624239000,-338.87344356,0.00013698,2]
[424167082,1780624239000,-2000.0,0.00013126,2]
[424167087,1780624239000,-500.0,0.00013698,2]
[424167081,1780624239000,-2000.0,0.00013092,2]
[424167083,1780624239000,-186.46044473,0.00013226,2]
[424167085,1780624239000,-504.84655409,0.00013698,2]
[424167084,1780624239000,-166.66,0.00013327,2]
[424167086,1780624239000,-500.0,0.00013698,2]
[424167092,1780624239000,-500.0,0.00013698,2]
[424167097,1780624239000,-500.0,0.00013698,2]
[424167102,1780624239000,-500.0,0.00013698,2]
[424167120,1780624239000,-500.0,0.00013698,2]
[424167095,1780624239000,-500.0,0.00013698,2]
[424167124,1780624239000,-500.0,0.00013698,2]
[424167160,1780624239000,-500.0,0.00013698,2]
[424167166,1780624239000,-500.0,0.00013698,2]
[424167162,1780624239000,-500.0,0.00013698,2]
[424167167,1780624239000,-500.0,0.00013698,2]
[424167164,1780624239000,-500.0,0.00013698,2]
[424167163,1780624239000,-500.0,0.00013698,2]
[424167175,1780624239000,-500.0,0.00013698,2]
[424167176,1780624239000,-500.0,0.00013698,2]
[424167174,1780624239000,-500.0,0.00013698,2]
[424167169,1780624239000,-500.0,0.00013698,2]
[424167178,1780624239000,-500.0,0.00013698,2]
[424167177,1780624239000,-500.0,0.00013698,2]
[424167172,1780624239000,-500.0,0.00013698,2]
[424167179,1780624239000,-500.0,0.00013698,2]
[424167181,1780624239000,-309.2506608,0.00013698,2]
[424167170,1780624239000,-500.0,0.00013698,2]
[424167171,1780624239000,-516.98237672,0.00013698,2]
[424167173,1780624239000,-482.30376214,0.00013698,2]
[424167184,1780624239000,-523.9,0.00013698,2]
[424167183,1780624239000,-523.9,0.00013698,2]
[424167191,1780624239000,-523.9,0.00013698,2]
[424167182,1780624239000,-523.9,0.00013698,2]
[424167192,1780624239000,-523.9,0.00013698,2]
[424167187,1780624239000,-523.9,0.00013698,2]
[424167185,1780624239000,-523.9,0.00013698,2]
[424167188,1780624239000,-523.9,0.00013698,2]
[424167190,1780624239000,-523.9,0.00013698,2]
[424167189,1780624239000,-523.9,0.00013698,2]
[424167122,1780624239000,-500.0,0.00013698,2]
[424167186,1780624239000,-523.9,0.00013698,2]
[424167161,1780624239000,-500.0,0.00013698,2]
[424167180,1780624239000,-500.0,0.00013698,2]
[424167165,1780624239000,-500.0,0.00013698,2]
[424167130,1780624239000,-500.0,0.00013698,2]
[424167168,1780624239000,-500.0,0.00013698,2]
[424167132,1780624239000,-500.0,0.00013698,2]
[424167133,1780624239000,-500.0,0.00013698,2]
[424167134,1780624239000,-404.03565454,0.00013698,2]
[424167141,1780624239000,-500.0,0.00013698,2]
[424167136,1780624239000,-500.0,0.00013698,2]
[424167137,1780624239000,-500.0,0.00013698,2]
[424167139,1780624239000,-500.0,0.00013698,2]
[424167140,1780624239000,-500.0,0.00013698,2]
[424167131,1780624239000,-500.0,0.00013698,2]
[424167142,1780624239000,-500.0,0.00013698,2]
[424167135,1780624239000,-500.0,0.00013698,2]
[424167153,1780624239000,-500.0,0.00013698,2]
[424167152,1780624239000,-500.0,0.00013698,2]
[424167138,1780624239000,-500.0,0.00013698,2]
[424167155,1780624239000,-500.0,0.00013698,2]
[424167159,1780624239000,-500.0,0.00013698,2]
[424167143,1780624239000,-500.0,0.00013698,2]
[424167156,1780624239000,-500.0,0.00013698,2]